Workbook

Sheet Indice
P1: "… la hoja de cálculo es un instrumento extremadamente potente pero podemos cometer errores en su diseño"…………….. Consejo: Audite continuamente sus hojas…
O6: Consejos de navegacion a tráves de los vínculos del libro
O7: Volver al vínculo anterior | Q7: ALT + ← | R7: ALT+FLECHA IZQUIERDA
O8: Volver al vínculo siguiente | Q8: ALT + → | R8: ALT+FLECHA DERECHA
B10: Indice General | O10: R | P10: Restaura valores orginiales
C11: Bases del Cuadro de Mando
D12: Aspectos conceptuales previos, costes
C14: Radiografía del Gasto
D15: Ajuste, analisis, evaluación y localización de los gastos y costes del periodo estimados
C17: Actividad Estimada en el Periodo
D18: Estimación de la produccion y ventas previstas en el periodo vinculada con los gastos del ejericicio. Estimacion de los precios medios de venta y del Mix de Ventas del Periodo
C20: Transformación de Gastos en Costes, Gasto vs. Coste
D21: Asignación de los gastos a costes del producto y del perido. Tasa de repercusion de los costes del periodo por unidad de costes de los productos vendidos
C23: Cuadro de Mando de la Producción del Periodo
D24: Coste de la producción del periodo y análisis de sensibilidad
C25: Cuadro de Mando, Ventas y Costes de Estructura del Periodo
B27: Parámetros de configuración general
C28: Selección de tipos de vino y envases en el proceso de producción y comercialización. Establecimiento de precios estándar de uva comprada y/o producida. Precios promedio unitarios de venta, etc.

Sheet Esquema

Sheet Radiografia del gasto
C1: Método formal o contable | S1: Método “ojo de buen cubero” | AH1: Conciliación Método Contable - "Ojo de buen cubero"
B2: Radiografía del Gasto. Análisis, ajuste y asignación | R2: Actividad y Costes Estimados del Periodo | AH2: Ajustes, Gastos vs. Costes
B3: Nota 1: | D3: Gasto real/estimado | F3: Estimación de Coste (Relevancia) | K3: Comprobación (Cheking) en Asignación | S3: Costes Industriales Imputados a la Producción del Periodo (COSTE DE LA AÑADA) | AH3: Costes Industriales del Periodo Imputados: | AM3: =Z39 -> 231450.01
F4: Departamentos o centros | J4: Gasto Plurianual y Ajustes | S4: Vinos a producir en el periodo | W4: =Configuracion!B13 -> Joven Blanco Semiseco | X4: =Configuracion!C13 -> Tinto Crianza | Y4: =Configuracion!D13 -> Tinto Barrica | Z4: =Configuracion!E13 -> Tinto Reserva | AA4: Total | AH4: (Costes del Producto, costes variables)
D5: 2015/2016 | F5: =Configuracion!B7 -> Finca o Cultivo | G5: =Configuracion!C7 -> Bodega o Industrial | H5: =Configuracion!D7 -> Comercial y Logistica | I5: =Configuracion!E7 -> Administ. Estructura | AH5: Gasto Contable Industrial del Periodo
B6: Conceptos /Detalles | D6: Monetario | E6: % | S6: Envase tipo | W6: =Configuracion!B15 -> Bag in Box | X6: =Configuracion!C15 -> Bot 3/4 | Y6: =Configuracion!D15 -> Bot 3/4 | Z6: =Configuracion!E15 -> Bot 3/4 | AI6: Gastos de Explotación de Cultivo | AL6: =F41 -> 206917 | AM6: S
A7: N2 | B7: 60-61Consumos | C7: Total contable: | D7: 184562 | F7: Comprobación (Cheking) Total: | I7: =IF(D7-D15>0,"Faltan "&D7-D15,IF(D7-D15<0,"Exceso "&D7-D15,"Correcto")) -> Correcto | S7: Litros: | W7: 13952 | X7: 30552 | Y7: 22735 | Z7: 8601 | AA7: =SUM(W7:Z7) -> 75840 | AI7: ="(Dpto/Centro: "&F5&")" -> (Dpto/Centro: Finca o Cultivo)
C8: Uvas compras | D8: 144500 | E8: =D8/D41 -> 0.2419402098 | F8: 144500 | G8: 0 | K8: =IF(D8-SUM(F8:J8)>0,"Faltan "&D8-SUM(F8:J8),IF(D8-SUM(F8:J8)<0,"Exceso "&D8-SUM(F8:J8),"Correcto")) -> Correcto | S8: Total Unidades | W8: 2791 | X8: 40737 | Y8: 30314 | Z8: 11468 | AA8: =SUM(W8:Z8) -> 85310 | AI8: Gastos de Explotación de Bodegas | AL8: =G41 -> 136933 | AM8: S
C9: Botellas, corchos, etc. | D9: 5584 | E9: =D9/D41 -> 0.009349440356 | G9: 5584 | K9: =IF(D9-SUM(F9:J9)>0,"Faltan "&D9-SUM(F9:J9),IF(D9-SUM(F9:J9)<0,"Exceso "&D9-SUM(F9:J9),"Correcto")) -> Correcto | S9: Coste Industrial Estimado de la Producción (Coste Variable) | AA9: =SUM(W10:Z10) -> 110000 | AI9: ="(Dpto/Centro: "&G5&")" -> (Dpto/Centro: Bodega o Industrial)
C10: Etiquetas y similares | D10: 1353 | E10: =D10/D41 -> 0.00226536404 | G10: 1353 | K10: Correcto | S10: N1 | T10: Coste de la UVA: | W10: 15000 | X10: 25000 | Y10: 40000 | Z10: 30000 | AK10: Subtotal: | AL10: =SUM(AL6+AL8) -> 343850
C11: Fertizantes, abonos, etc | D11: 1850 | E11: =D11/D41 -> 0.003097504416 | F11: 1850 | K11: Correcto | W11: =Configuracion!B50 -> 0.9 | X11: =Configuracion!C50 -> 1.2 | Y11: =Configuracion!D50 -> 1.7 | Z11: =Configuracion!E50 -> 1.1 | AI11: (1) | AJ11: Gasto Contable Industrial vs Coste Industrial Imputado: | AN11: =IF(SUMIF(AM6:AM8,"S",AL6:AL8)-AM3<0,0,SUMIF(AM6:AM8,"S",AL6:AL8)-AM3) -> 112399.99
C12: Productos enológicos | D12: 9600 | E12: =D12/D41 -> 0.01607353643 | G12: 9600 | K12: Correcto | W12: =W11*W10 -> 13500 | X12: =X11*X10 -> 30000 | Y12: 68000 | Z12: 33000 | AA12: =SUM(W12:Z12) -> 144500 | AJ12: (Ajuste Incremento del Coste Fijo del Periodo)
C13: Tratamientos, etc | D13: 425 | E13: =D13/D41 -> 0.0007115888523 | F13: 425 | K13: Correcto | S13: N2 | T13: Proceso Vendimia: | W13: 3300 | X13: 6700 | Y13: 3300 | Z13: 2200 | AA13: =SUM(W13:Z13) -> 15500 | AH13: Gasto Contable de Explotación
C14: Otros | D14: 21250 | E14: =D14/D41 -> 0.03557944262 | F14: 2500 | G14: 150 | H14: 15400 | I14: 1500 | J14: 1700 | K14: Correcto | S14: N3 | T14: Proceso Previnificación: | W14: 2040 | X14: 2058 | Y14: 2780 | Z14: 2423 | AA14: =SUM(W14:Z14) -> 9301 | AI14: Gastos de Distribución | AL14: =H41 -> 142219 | AM14: S
C15: Asignado: | D15: =SUM(D8:D14) -> 184562 | E15: =D15/D41 -> 0.3090170865 | F15: =SUM(F8:F14) -> 149275 | G15: =SUM(G8:G14) -> 16687 | H15: =SUM(H8:H14) -> 15400 | I15: =SUM(I8:I14) -> 1500 | J15: =SUM(J8:J14) -> 1700 | S15: N4 | T15: Proceso Vinificación Final: | AI15: ="(Dpto/Centro: "&H5&" )" -> (Dpto/Centro: Comercial y Logistica )
A16: N3 | B16: 62 Servicios Externos | C16: Total contable: | D16: 80690 | F16: Comprobación (Cheking) Total: | I16: =IF(D16-D25>0,"Faltan "&D16-D25,IF(D16-D25<0,"Exceso "&D16-D25,"Correcto")) -> Correcto | T16: Coste del vestido: | W16: 2.3 | X16: 0.72 | Y16: 0 | Z16: 1.03 | AA16: =SUMPRODUCT(W16:Z16,W8:Z8) -> 47561.98 | AI16: Gastos de Administración | AL16: =I41 -> 93447 | AM16: S
C17: Arrendamientos | D17: 1300 | E17: =D17/D41 -> 0.002176624725 | F17: 1300 | K17: =IF(D17-SUM(F17:J17)>0,"Faltan "&D17-SUM(F17:J17),IF(D17-SUM(F17:J17)<0,"Exceso "&D17-SUM(F17:J17),"Correcto")) -> Correcto | T17: Coste de las actividades: | W17: 924 | X17: 1925 | Y17: 3924 | Z17: 684 | AA17: =SUM(W17:Z17) -> 7457 | AI17: ="(Dpto/Centro: "&I5&" )" -> (Dpto/Centro: Administ. Estructura )
C18: Reparaciones | D18: 2700 | E18: =D18/D41 -> 0.004520682121 | F18: 150 | G18: 280 | H18: 425 | I18: 150 | J18: 1695 | K18: =IF(D18-SUM(F18:J18)>0,"Faltan "&D18-SUM(F18:J18),IF(D18-SUM(F18:J18)<0,"Exceso "&D18-SUM(F18:J18),"Correcto")) -> Correcto | T18: Coste de la producción: | W18: =((W17+W14+W13+W12)/W8)+W16 -> 9.381332856 | X18: =((X17+X14+X13+X12)/X8)+X16 -> 1.718674424 | Y18: =((Y17+Y14+Y13+Y12)/Y8)+Y16 -> 2.573200501 | Z18: =((Z17+Z14+Z13+Z12)/Z8)+Z16 -> 4.370338333 | AK18: Subtotal: | AL18: =SUM(AL14+AL16) -> 235666
C19: Servic. Profe.Indep | D19: 18420 | E19: =D19/D41 -> 0.03084109802 | F19: 6850 | G19: 8540 | I19: 3030 | K19: Correcto | S19: Costes Industriales Imputados a las Ventas del Periodo | AI19: (2) | AJ19: Costes de Estuctura I: | AN19: =SUMIF(AM14:AM16,"S",AL14:AL17) -> 235666
C20: Transportes | D20: 25650 | E20: =D20/D41 -> 0.04294648015 | H20: 25650 | K20: Correcto | S20: Vinos a comercializar en el periodo | W20: =Configuracion!B19 -> Joven Blanco Semiseco | X20: =Configuracion!C19 -> Tinto Crianza X-1 | Y20: =Configuracion!D19 -> Tinto Barrica X-1 | Z20: =Configuracion!E19 -> Tinto Reserva X-3 | AJ20: (Ajuste Incremento del Coste Fijo del Periodo)
C21: Servicios Bancarios | D21: 2820 | E21: =D21/D41 -> 0.004721601326 | I21: 2820 | K21: Correcto | AH21: Otros Gastos Contables: Financieros y Otros
C22: Publicidad y Rel. Publ | D22: 18750 | E22: =D22/D41 -> 0.03139362584 | H22: 10250 | I22: 2500 | J22: 6000 | K22: Correcto | S22: Envase tipo | W22: =Configuracion!B21 -> Bag in Box | X22: =Configuracion!C21 -> Bot 3/4 | Y22: =Configuracion!D21 -> Bot 3/4 | Z22: =Configuracion!E21 -> Bot 3/4 | AI22: Gastos financieros y similares | AL22: =SUM(F43:I43) -> 1500 | AM22: S
C23: Sumini. y Comunica. | D23: 6250 | E23: =D23/D41 -> 0.01046454195 | H23: 3580 | I23: 2670 | K23: Correcto | S23: Total Unidades | W23: 2791 | X23: 35750 | Y23: 25215 | Z23: 11468 | AA23: =SUM(W23:Z23) -> 75224 | AI23: Pérdidas Extraordinarias | AL23: =SUM(F44:I44) -> 0 | AM23: S
C24: Otros Servicios | D24: 4800 | E24: =D24/D41 -> 0.008036768215 | I24: 4800 | K24: Correcto | V24: Mix de Ventas | W24: =W23/$AA$23 -> 0.03710252047 | X24: =X23/$AA$23 -> 0.4752472615 | Y24: =Y23/$AA$23 -> 0.3351988727 | Z24: =Z23/$AA$23 -> 0.1524513453 | AI24: Otras Dotaciones | AL24: =SUM(F45:I45) -> 0 | AM24: S
C25: Asignado: | D25: =SUM(D17:D24) -> 80690 | E25: =D25/D41 -> 0.1351014223 | F25: =SUM(F17:F24) -> 8300 | G25: =SUM(G17:G24) -> 8820 | H25: =SUM(H17:H24) -> 39905 | I25: =SUM(I17:I24) -> 15970 | J25: =SUM(J17:J24) -> 7695 | S25: Coste Industrial Estimado de las Ventas (Coste Variable) | Z25: =SUM(W27:Z27)+AA29 -> 209717.32 | AI25: Otros | AL25: =SUM(F46:I46) -> 0 | AM25: S
A26: N4 | B26: 63 Impuestos | C26: Total contable: | D26: 4400 | E26: =D26/D41 -> 0.00736703753 | F26: Comprobación (Cheking) Total: | I26: =IF(D26-D29>0,"Faltan "&D26-D29,IF(D26-D29<0,"Exceso "&D26-D29,"Correcto")) -> Correcto | S26: N5 | T26: Coste Acumulado Heredado | W26: 9.38 | X26: 1.72 | Y26: 2.57 | Z26: 4.37 | AK26: Subtotal: | AL26: =SUM(AL22:AL25) -> 1500
C27: De explotación | D27: 2600 | E27: =D27/D41 -> 0.00435324945 | F27: 150 | G27: 2450 | K27: =IF(D27-SUM(F27:J27)>0,"Faltan "&D27-SUM(F27:J27),IF(D27-SUM(F27:J27)<0,"Exceso "&D27-SUM(F27:J27),"Correcto")) -> Correcto | W27: =W26*W23 -> 26179.58 | X27: =X26*X23 -> 61490 | Y27: =Y26*Y23 -> 64802.55 | Z27: =Z26*Z23 -> 50115.16 | AI27: (3) | AJ27: Costes de Estuctura II: | AN27: =SUMIF(AM21:AM23,"S",AL21:AL24) -> 1500
C28: Otros | D28: 1800 | E28: =D28/D41 -> 0.00301378808 | I28: 1800 | K28: =IF(D28-SUM(F28:J28)>0,"Faltan "&D28-SUM(F28:J28),IF(D28-SUM(F28:J28)<0,"Exceso "&D28-SUM(F28:J28),"Correcto")) -> Correcto | S28: N6 | T28: Coste Industrial del Periodo Imputado a Otras Añadas | W28: 0 | X28: 0 | Y28: 0.21 | Z28: 0.16 | AH28: Coste de Oportunidad
C29: Asignado: | D29: =SUM(D27:D28) -> 4400 | E29: =D29/D41 -> 0.00736703753 | F29: =F27+F28 -> 150 | G29: =G27+G28 -> 2450 | H29: =H27+H28 -> 0 | I29: =I27+I28 -> 1800 | J29: =J27+J28 -> 0 | W29: =W28*W23 -> 0 | X29: =X28*X23 -> 0 | Y29: =Y28*Y23 -> 5295.15 | Z29: =Z28*Z23 -> 1834.88 | AA29: =SUM(W29:Z29) -> 7130.03 | AI29: Dpto | AJ29: =F5 -> Finca o Cultivo | AL29: =F50 -> 250 | AM29: N
A30: N5 | B30: 64 Personal | C30: Total contable: | D30: 318703 | E30: =D30/D41 -> 0.5336129459 | F30: Comprobación (Cheking) Total: | I30: =IF(D30-D35>0,"Faltan "&D30-D35,IF(D30-D35<0,"Exceso "&D30-D35,"Correcto")) -> Correcto | W30: =W26+W28 -> 9.38 | X30: =X26+X28 -> 1.72 | Y30: 2.78 | Z30: 4.53 | AI30: Dpto | AJ30: =G5 -> Bodega o Industrial | AL30: =G50 -> 6804 | AM30: N
C31: Sueldos y Salarios | D31: 225410 | E31: =D31/D41 -> 0.377409984 | F31: 35450 | G31: 75860 | H31: 60580 | I31: 53520 | K31: =IF(D31-SUM(F31:J31)>0,"Faltan "&D31-SUM(F31:J31),IF(D31-SUM(F31:J31)<0,"Exceso "&D31-SUM(F31:J31),"Correcto")) -> Correcto | S31: Precios Promedios Ponderados Unitarios de las ventas del periodo | AI31: Dpto | AJ31: =H5 -> Comercial y Logistica | AL31: =H50 -> 1500 | AM31: S
C32: Seguridad Social empresa | D32: 78893 | E32: =D32/D41 -> 0.1320926572 | F32: 12407 | G32: 26551 | H32: 21203 | I32: 18732 | K32: =IF(D32-SUM(F32:J32)>0,"Faltan "&D32-SUM(F32:J32),IF(D32-SUM(F32:J32)<0,"Exceso "&D32-SUM(F32:J32),"Correcto")) -> Correcto | S32: N7 | T32: Precio medio ponderado | W32: =Configuracion!B27 -> 25 | X32: =Configuracion!C27 -> 6.18 | Y32: =Configuracion!D27 -> 15.25 | Z32: =Configuracion!E27 -> 18.45 | AA32: =SUMPRODUCT(W32:Z32,W24:Z24) -> 11.78910122 | AI32: Dpto | AJ32: =I5 -> Administ. Estructura | AL32: =I50 -> 110 | AM32: S
C33: Indemnizaciones | D33: 7000 | E33: =D33/D41 -> 0.01172028698 | J33: 7000 | K33: =IF(D33-SUM(F33:J33)>0,"Faltan "&D33-SUM(F33:J33),IF(D33-SUM(F33:J33)<0,"Exceso "&D33-SUM(F33:J33),"Correcto")) -> Correcto | AK33: Subtotal: | AL33: =SUM(AL29:AL32) -> 8664
C34: Otras Gtos Sociales | D34: 7400 | E34: =D34/D41 -> 0.01239001766 | F34: 560 | G34: 1695 | H34: 3151 | I34: 850 | J34: 1144 | K34: =IF(D34-SUM(F34:J34)>0,"Faltan "&D34-SUM(F34:J34),IF(D34-SUM(F34:J34)<0,"Exceso "&D34-SUM(F34:J34),"Correcto")) -> Correcto | AI34: (4) | AJ34: Costes de Estuctura y III: | AN34: =SUMIF(AM29:AM32,"S",AL29:AL32) -> 1610
C35: Asignado: | D35: =SUM(D31:D34) -> 318703 | E35: =D35/D41 -> 0.5336129459 | F35: =F31+F32+F33+F34 -> 48417 | G35: =G31+G32+G33+G34 -> 104106 | H35: =H31+H32+H33+H34 -> 84934 | I35: =I31+I32+I33+I34 -> 73102 | J35: =J31+J32+J33+J34 -> 8144
A36: N6 | B36: 68 Amortización | C36: Total contable: | D36: 8900 | F36: Comprobación (Cheking) Total: | I36: =IF(D36-D40>0,"Faltan "&D36-D40,IF(D36-D40<0,"Exceso "&D36-D40,"Correcto")) -> Correcto | R36: Resumen Coste Industrial del Periodo Imputado | AI36: Resumen Costes del Producto y del Periodo
C37: Física/Técnica | D37: 3200 | E37: =D37/D41 -> 0.005357845476 | F37: 525 | G37: 620 | H37: 1230 | I37: 825 | K37: =IF(D37-SUM(F37:J37)>0,"Faltan "&D37-SUM(F37:J37),IF(D37-SUM(F37:J37)<0,"Exceso "&D37-SUM(F37:J37),"Correcto")) -> Correcto | S37: Costes Industriales Producción del Periodo (COSTE DE LA AÑADA) | Z37: =AA12+AA13+AA14+AA16+AA17 -> 224319.98 | AA37: =Z37/Z39 -> 0.9691940821 | AI37: Coste Imputado al Producto (Coste Variable) | AL37: =AM3 -> 231450.01 | AM37: =AL37/AL39 -> 0.3972531435
C38: Funcional | D38: 5500 | E38: =D38/D41 -> 0.009208796913 | F38: 250 | G38: 4250 | H38: 750 | I38: 250 | K38: =IF(D38-SUM(F38:J38)>0,"Faltan "&D38-SUM(F38:J38),IF(D38-SUM(F38:J38)<0,"Exceso "&D38-SUM(F38:J38),"Correcto")) -> Correcto | S38: Coste Industrial del Periodo Imputado a Otras Añadas | Z38: =AA29 -> 7130.03 | AA38: =Z38/Z39 -> 0.03080591787 | AI38: Costes de Estructura (Coste Fijo) (1+2+3+4) | AL38: =AN11+AN19+AN27+AN34 -> 351175.99 | AM38: =AL38/AL39 -> 0.6027468565
C39: Otras | D39: 200 | E39: =D39/D41 -> 0.0003348653423 | J39: 200 | K39: =IF(D39-SUM(F39:J39)>0,"Faltan "&D39-SUM(F39:J39),IF(D39-SUM(F39:J39)<0,"Exceso "&D39-SUM(F39:J39),"Correcto")) -> Correcto | S39: Costes Industriales del Periodo Imputados a los Productos: | Z39: =SUM(Z37:Z38) -> 231450.01 | AA39: =SUM(AA37:AA38) -> 1 | AI39: Coste Total del Periodo | AL39: =SUM(AL37:AL38) -> 582626 | AM39: =SUM(AM37:AM38) -> 1
C40: Asignado: | D40: =SUM(D37:D39) -> 8900 | E40: =D40/D41 -> 0.01490150773 | F40: =F37+F38+F39 -> 775 | G40: =G37+G38+G39 -> 4870 | H40: =H37+H38+H39 -> 1980 | I40: =I37+I38+I39 -> 1075 | J40: =J37+J38+J39 -> 200 | AI40: Coste Total de los Productos Vendidos | AL40: =SUM(W27:Z27)+AA29 -> 209717.32
B41: Total Gtos Explotación | D41: =D40+D35+D29+D25+D15 -> 597255 | E41: =D41/D41 -> 1 | F41: =F40+F35+F29+F25+F15 -> 206917 | G41: =G40+G35+G29+G25+G15 -> 136933 | H41: =H40+H35+H29+H25+H15 -> 142219 | I41: =I40+I35+I29+I25+I15 -> 93447 | J41: =J40+J35+J29+J25+J15 -> 17739 | AI41: _____________________________________________
A42: N7 | B42: Otros Gtos/Costes | C42: Total contable: | D42: 7930 | F42: Comprobación (Cheking) Total: | I42: =IF(D42-D47>0,"Faltan "&D42-D47,IF(D42-D47<0,"Exceso "&D42-D47,"Correcto")) -> Correcto | AI42: Tasa de imputación de costes fijos del periodo por unidad de coste de producto vendido | AL42: =AL38/AL40 -> 1.674520683
C43: 65-66 Gtos Finan. Y simil | D43: 1500 | E43: =D43/$D$48 -> 0.1891551072 | I43: 1500 | K43: =IF(D43-SUM(F43:J43)>0,"Faltan "&D43-SUM(F43:J43),IF(D43-SUM(F43:J43)<0,"Exceso "&D43-SUM(F43:J43),"Correcto")) -> Correcto
C44: 67 Pérdidas Extraord. | D44: 4750 | E44: =D44/$D$48 -> 0.5989911728 | J44: 4750 | K44: =IF(D44-SUM(F44:J44)>0,"Faltan "&D44-SUM(F44:J44),IF(D44-SUM(F44:J44)<0,"Exceso "&D44-SUM(F44:J44),"Correcto")) -> Correcto
C45: 69 Otras Dotaciones | D45: 1580 | E45: =D45/$D$48 -> 0.1992433796 | H45: 0 | J45: 1580 | K45: =IF(D45-SUM(F45:J45)>0,"Faltan "&D45-SUM(F45:J45),IF(D45-SUM(F45:J45)<0,"Exceso "&D45-SUM(F45:J45),"Correcto")) -> Correcto
C46: Otros | D46: 100 | E46: =D46/$D$48 -> 0.01261034048 | J46: 100 | K46: =IF(D46-SUM(F46:J46)>0,"Faltan "&D46-SUM(F46:J46),IF(D46-SUM(F46:J46)<0,"Exceso "&D46-SUM(F46:J46),"Correcto")) -> Correcto
C47: Asignado: | D47: =SUM(D43:D46) -> 7930 | E47: =D47/D48 -> 1 | F47: =F43+F44+F45+F46 -> 0 | G47: =G43+G44+G45+G46 -> 0 | H47: =H43+H44+H45+H46 -> 0 | I47: =I43+I44+I45+I46 -> 1500 | J47: =J43+J44+J45+J46 -> 6430
B48: Total Otros Gastos | D48: =D47 -> 7930 | E48: =D48/D48 -> 1 | F48: =F47 -> 0 | G48: =G47 -> 0 | H48: =H47 -> 0 | I48: =I47 -> 1500 | J48: =J47 -> 6430
A50: N8 | B50: Coste de Oportunidad: | D50: =SUM(F50:J50) -> 8664 | F50: 250 | G50: 6804 | H50: 1500 | I50: 110
B51: TOTAL GASTOS: | D51: =D50+D48+D41 -> 613849 | F51: Costes Imputables al producto y al periodo | I51: =D51-D52 -> 589680
C52: - Plurianuales y ajustes: | D52: =J41+J48 -> 24169

Sheet CM_Produccion
C1: PRODUCCION: Cuadro de Mando y Análisis de Sensibilidad
B2: Total Gastos Contables: | E2: ='Radiografia del gasto'!D51 -> 613849 | G2: Coste imputado al producto: | J2: ='Radiografia del gasto'!AL37 -> 231450.01
B3: - Gastos Plurianuales: | E3: ='Radiografia del gasto'!D52 -> 24169 | G3: Coste imputados al periodo: | J3: ='Radiografia del gasto'!AL38 -> 351175.99
B4: = Gastos del Periodo: | E4: ='Radiografia del gasto'!I51 -> 589680 | G4: Total Costes Imputados: | J4: ='Radiografia del gasto'!AL39 -> 582626 | L4: =J4/E4 -> 0.9880375797
B6: Estimación de los Costes de Producción del Periodo (COSTE DE LA AÑADA)
E9: ='Radiografia del gasto'!W4 -> Joven Blanco Semiseco | G9: ='Radiografia del gasto'!X4 -> Tinto Crianza | I9: ='Radiografia del gasto'!Y4 -> Tinto Barrica | K9: ='Radiografia del gasto'!Z4 -> Tinto Reserva | M9: TOTAL
E11: ='Radiografia del gasto'!W6 -> Bag in Box | G11: ='Radiografia del gasto'!X6 -> Bot 3/4 | I11: ='Radiografia del gasto'!Y6 -> Bot 3/4 | K11: ='Radiografia del gasto'!Z6 -> Bot 3/4
B12: Unidades: | E12: ='Radiografia del gasto'!W8 -> 2791 | G12: ='Radiografia del gasto'!X8 -> 40737 | I12: ='Radiografia del gasto'!Y8 -> 30314 | K12: 11468 | M12: =SUM(E12+G12+I12+K12) -> 85310
B13: Mix de Producción: | E13: =E12/$M$12 -> 0.03271597702 | G13: =G12/$M$12 -> 0.4775172899 | I13: =I12/$M$12 -> 0.3553393506 | K13: =K12/$M$12 -> 0.1344273825 | M13: =SUM(E13+G13+I13+K13) -> 1
B14: Coste Industrial Estimado de la Producción (Coste Variable)
B15: Coste de la Uva: | E15: ='Radiografia del gasto'!W11 -> 0.9 | G15: ='Radiografia del gasto'!X11 -> 1.2 | I15: ='Radiografia del gasto'!Y11 -> 1.7 | K15: ='Radiografia del gasto'!Z11 -> 1.1
E16: ='Radiografia del gasto'!W12/'Radiografia del gasto'!W8 -> 4.836975994 | F16: =E16/E18 -> 0.5155958187 | G16: ='Radiografia del gasto'!X12/'Radiografia del gasto'!X8 -> 0.7364312541 | H16: =G16/G18 -> 0.4284879346 | I16: ='Radiografia del gasto'!Y12/'Radiografia del gasto'!Y8 -> 2.243187966 | J16: =I16/I18 -> 0.8717501667 | K16: ='Radiografia del gasto'!Z12/'Radiografia del gasto'!Z8 -> 2.877572375 | L16: =K16/K18 -> 0.6584324041 | M16: =((K16*$K$13)+(I16*$I$13)+(G16*$G$13)+(E16*$E$13)) -> 1.69382253 | N16: =M16/M18 -> 0.6441691017
B17: Coste Industrial Imputado: | E17: =(('Radiografia del gasto'!W13+'Radiografia del gasto'!W14+'Radiografia del gasto'!W17)/'Radiografia del gasto'!W8)+'Radiografia del gasto'!W16 -> 4.544356861 | F17: =E17/E18 -> 0.4844041813 | G17: =(('Radiografia del gasto'!X13+'Radiografia del gasto'!X14+'Radiografia del gasto'!X17)/'Radiografia del gasto'!X8)+'Radiografia del gasto'!X16 -> 0.9822431696 | H17: =G17/G18 -> 0.5715120654 | I17: =(('Radiografia del gasto'!Y13+'Radiografia del gasto'!Y14+'Radiografia del gasto'!Y17)/'Radiografia del gasto'!Y8)+'Radiografia del gasto'!Y16 -> 0.3300125355 | J17: =I17/I18 -> 0.1282498333 | K17: =(('Radiografia del gasto'!Z13+'Radiografia del gasto'!Z14+'Radiografia del gasto'!Z17)/'Radiografia del gasto'!Z8)+'Radiografia del gasto'!Z16 -> 1.492765957 | L17: =K17/K18 -> 0.3415675959 | M17: =((K17*$K$13)+(I17*$I$13)+(G17*$G$13)+(E17*$E$13)) -> 0.9356462314 | N17: =M17/M18 -> 0.3558308983
B18: COSTE TOTAL DEL VINO | E18: =E17+E16 -> 9.381332856 | G18: =G17+G16 -> 1.718674424 | I18: =I17+I16 -> 2.573200501 | K18: =K17+K16 -> 4.370338333 | M18: =((K18*$K$13)+(I18*$I$13)+(G18*$G$13)+(E18*$E$13)) -> 2.629468761
C19: =(E18*$E$12)+(G18*$G$12)+(I18*$I$12)+(K18*$K$12) -> 224319.98
B20: Simulación - Análisis de Sensibilidad -
B22: Coste de la Uva: | E22: =E23/100 -> 0.9 | G22: =G23/100 -> 1.2 | I22: =I23/100 -> 1.7 | K22: =K23/100 -> 1.1
D23: R | E23: =E15*100 -> 90 | G23: =G15*100 -> 120 | I23: =I15*100 -> 170 | K23: =K15*100 -> 110
D24: Variación | E24: =(E22-E15) -> 0 | G24: =(G22-G15) -> 0 | I24: =(I22-I15) -> 0 | K24: =(K22-K15) -> 0
E25: =E24/E15 -> 0 | G25: =G24/G15 -> 0 | I25: =I24/I15 -> 0 | K25: =K24/K15 -> 0
B26: COSTE TOTAL DEL VINO | E26: =((E22*'Radiografia del gasto'!W10)/'Radiografia del gasto'!W8)+E17 -> 9.381332856 | G26: =((G22*'Radiografia del gasto'!X10)/'Radiografia del gasto'!X8)+CM_Produccion!G17 -> 1.718674424 | I26: =((I22*'Radiografia del gasto'!Y10)/'Radiografia del gasto'!Y8)+I17 -> 2.573200501 | K26: =((K22*'Radiografia del gasto'!Z10)/'Radiografia del gasto'!Z8)+K17 -> 4.370338333 | M26: =(K26*$K$13)+(I26*$I$13)+(G26*$G$13)+(E26*$E$13) -> 2.629468761
D27: Variación | E27: =(E26-E18) -> 0 | G27: =(G26-G18) -> 0 | I27: =(I26-I18) -> 0 | K27: =(K26-K18) -> 0 | M27: =(M26-M18) -> 0
C28: =(E26*$E$12)+(G26*$G$12)+(I26*$I$12)+(K26*$K$12) -> 224319.98 | E28: =E27/E18 -> 0 | G28: =G27/G18 -> 0 | I28: =I27/I18 -> 0 | K28: =K27/K18 -> 0 | M28: =M27/M18 -> 0

Sheet CM
B1: Cuadro de Mando y Análisis de Sensibilidad
B3: Estimación de los ingresos y margenes del periodo - Análisis de Sensibilidad
E5: ='Radiografia del gasto'!W20 -> Joven Blanco Semiseco | G5: ='Radiografia del gasto'!X20 -> Tinto Crianza X-1 | H5: ='Radiografia del gasto'!Y20 -> Tinto Barrica X-1 | I5: ='Radiografia del gasto'!Z20 -> Tinto Reserva X-3 | J5: TOTAL
E6: 0
B7: Unidades: | E7: ='Radiografia del gasto'!W23 -> 2791 | G7: ='Radiografia del gasto'!X23 -> 35750 | H7: ='Radiografia del gasto'!Y23 -> 25215 | I7: ='Radiografia del gasto'!Z23 -> 11468 | J7: =SUM(E7:I7) -> 75224
B8: Mix de Ventas: | E8: =E7/$J$7 -> 0.03710252047 | G8: =G7/$J$7 -> 0.4752472615 | H8: =H7/$J$7 -> 0.3351988727 | I8: =I7/$J$7 -> 0.1524513453 | J8: =SUM(E8:I8) -> 1
B9: Precios Medios: | E9: ='Radiografia del gasto'!W32 -> 25 | G9: ='Radiografia del gasto'!X32 -> 6.18 | H9: ='Radiografia del gasto'!Y32 -> 15.25 | I9: ='Radiografia del gasto'!Z32 -> 18.45 | J9: =SUMPRODUCT(E8:I8,E9:I9) -> 11.78910122
B10: Coste Variable Unitario | E10: ='Radiografia del gasto'!W30 -> 9.38 | G10: ='Radiografia del gasto'!X30 -> 1.72 | H10: ='Radiografia del gasto'!Y30 -> 2.78 | I10: ='Radiografia del gasto'!Z30 -> 4.53 | J10: =SUMPRODUCT(E8:I8,E10:I10) -> 2.787904392
B11: Márgenes Unitarios | E11: =E9-E10 -> 15.62 | G11: =G9-G10 -> 4.46 | H11: =H9-H10 -> 12.47 | I11: =I9-I10 -> 13.92 | J11: =J9-J10 -> 9.001196825
B15: R | C15: Mix de ventas | E15: =E16 -> 2791 | G15: =G16 -> 35750 | H15: =H16 -> 25215 | I15: =I16 -> 11468 | J15: =SUM(E16:I16) -> 75224
E16: =E7 -> 2791 | G16: =G7 -> 35750 | H16: =H7 -> 25215 | I16: =I7 -> 11468
E17: =E15/$J$15 -> 0.03710252047 | G17: =G15/$J$15 -> 0.4752472615 | H17: 0.3351988727 | I17: 0.1524513453 | K17: =SUM(E17:I17) -> 1
D18: Variación | E18: =E15-E7 -> 0 | G18: =G15-G7 -> 0 | H18: =H15-H7 -> 0 | I18: =I15-I7 -> 0 | J18: =SUM(E18:I18) -> 0 | O18: RESULTADOS DEL PERIODO PREVISTOS:
E19: =IFERROR(E18/E7,0) -> 0 | G19: =IFERROR(G18/G7,0) -> 0 | H19: =IFERROR(H18/H7,0) -> 0 | I19: =IFERROR(I18/I7,0) -> 0 | K19: =IFERROR(K18/K7,0) -> 0 | Q19: ESTIMADO | S19: SENSIBILIDAD | U19: Variación
B20: R | C20: Precios Medios | E20: =ROUND(E21/100,2) -> 25 | G20: =ROUND(G21/100,2) -> 6.18 | H20: =ROUND(H21/100,2) -> 15.25 | I20: =ROUND(I21/100,2) -> 18.45 | J20: =(SUMPRODUCT(E20:I20,E17:I17)) -> 11.78910122 | O20: Actividad prevista | Q20: =J7 -> 75224 | S20: =J15 -> 75224 | U20: =(S20-Q20) -> 0 | V20: =IFERROR((S20-Q20)/Q20,0) -> 0
E21: =E9*100 -> 2500 | G21: =G9*100 -> 618 | H21: =H9*100 -> 1525 | I21: =I9*100 -> 1845 | O21: Ingresos previtos | Q21: =Q20*J9 -> 886823.35 | S21: =S20*J20 -> 886823.35 | U21: =(S21-Q21) -> 0 | V21: =IFERROR((S21-Q21)/Q21,0) -> 0
D22: Variación | E22: =E20-E9 -> 0 | G22: =G20-G9 -> 0 | H22: =H20-H9 -> 0 | I22: =I20-I9 -> 0 | J22: =K20-K9 -> 0 | O22: - Coste de Ventas (Coste Variable Industrial) | Q22: =J10 -> 2.787904392 | S22: =J20-J24 -> 2.787904392
E23: =IFERROR(E22/E9,0) -> 0 | G23: =IFERROR(G22/G9,0) -> 0 | H23: =IFERROR(H22/H9,0) -> 0 | I23: =IFERROR(I22/I9,0) -> 0 | J23: =IFERROR(J22/K9,0) -> 0 | Q23: =Q22*Q20 -> 209717.32 | S23: =S22*S20 -> 209717.32 | U23: -2.037268132e-10 | V23: =IFERROR((S23-Q23)/Q23,0) -> -9.714353264e-16
B24: Márgenes Unitarios | E24: =E20-E10 -> 15.62 | G24: =G20-G10 -> 4.46 | H24: =H20-H10 -> 12.47 | I24: =I20-I10 -> 13.92 | J24: =SUMPRODUCT(E24:I24,E17:I17) -> 9.001196825 | O24: = Margen Contribución Bruto | Q24: =ROUND(Q21-Q23,1) -> 677106 | R24: =Q24/Q21 -> 0.7635184617 | S24: =ROUND(S21-S23,0) -> 677106 | T24: =S24/S21 -> 0.7635184617 | U24: =ROUND((S24-Q24),0) -> 0 | V24: =IFERROR((S24-Q24)/Q24,0) -> 0
D25: Variación | E25: =E24-E11 -> 0 | G25: =G24-G11 -> 0 | H25: =H24-H11 -> 0 | I25: =I24-I11 -> 0 | K25: =J24-J11 -> 0 | O25: - Costes de Estructura (Costes Fijos del Periodo + Bº deseado) | Q25: =G28+J28 -> 351175.99
E26: =IFERROR(E25/E11,0) -> 0 | G26: =IFERROR(G25/G11,0) -> 0 | H26: =IFERROR(H25/H11,0) -> 0 | I26: =IFERROR(I25/I11,0) -> 0 | K26: =IFERROR(K25/J11,0) -> 0
O27: = RESULTADO ANALITICO: | Q27: =Q24-Q25 -> 325930.01 | R27: =Q27/Q21 -> 0.3675252913 | S27: =S24-Q25 -> 325930.01 | T27: =S27/S21 -> 0.3675252913 | U27: =(S27-Q27) -> 0 | V27: =IFERROR((S27-Q27)/Q27,0) -> 0
B28: Coste de Estructura (Costes Fijos del Periodo) | G28: ='Radiografia del gasto'!AL38 -> 351175.99 | H28: Beneficio deseado: | J28: 0
F29: Punto Muerto Estimado: | I29: =(G28+J28)/J11 -> 39014.36629 | J29: =I29*J9 -> 459944.3131 | O29: INDICADORES BASE | Q29: =Q19 -> ESTIMADO | S29: =S19 -> SENSIBILIDAD | U29: =U19 -> Variación
E30: Punto Muerto Sensibilidad: | I30: =(G28+J28)/J24 -> 39014.36629 | J30: =I30*J20 -> 459944.3131 | O30: Nivel de Actividad del pto. muerto | Q30: =I29/Q20 -> 0.5186425382 | S30: =I30/S20 -> 0.5186425382
B31: MIX DE VENTAS | I31: =ROUND((I30-I29)/I29,2) -> 0 | K31: =ROUND((J30-J29)/J29,2) -> 0
B32: Estimación: | E32: =E8*$I$29 -> 1447.531324 | G32: =G8*$I$29 -> 18541.47074 | H32: =H8*$I$29 -> 13077.5716 | I32: 5947.792628 | J32: =SUM(E32:I32) -> 39014.36629 | O32: Resultado Neto generado por unidad vendida | Q32: =Q27/Q20 -> 4.332792859 | S32: =S27/S20 -> 4.332792859 | U32: =S32-Q32 -> 0
B33: Sensibilidad: | E33: =E17*$I$30 -> 1447.531324 | G33: =G17*$I$30 -> 18541.47074 | H33: =H17*$I$30 -> 13077.5716 | I33: 5947.792628 | J33: =SUM(E33:I33) -> 39014.36629
D34: Variación | E34: =E33-E32 -> 0 | G34: =G33-G32 -> 0 | H34: =H33-H32 -> 0 | I34: 0 | J34: =J33-J32 -> 0 | O34: Resultado Neto generado por € facturado | Q34: =Q27/Q21 -> 0.3675252913 | S34: =S27/S21 -> 0.3675252913 | U34: =S34-Q34 -> 0
E35: =IFERROR(E34/E32,0) -> 0 | G35: =IFERROR(G34/G32,0) -> 0 | H35: =IFERROR(H34/H32,0) -> 0 | I35: 0 | J35: =IFERROR(J34/J32,0) -> 0
O36: Tasa de costes estructura (*) | Q36: =$Q$25/Q23 -> 1.674520683 | S36: =Q25/S23 -> 1.674520683 | U36: =S36-Q36 -> 0
O37: (*) Tasa de imputación de costes fijos del periodo por € de coste de producto vendido. Incluye Bº deseado

Sheet Notas
A1: Nota 0: Consideraciones generales
B2: En azul son datos para introducir y/o modificar
B3: En negro son datos calculados o estimados. Estan protegidos
B4: Las letras en color rojo intenso contienten hipervinculos a otras celdas o pestañas y que tienen un carácter informativo o aclaratorio
S7: Nota 5: Coste Heredado
A8: Nota 1: Coste de la uva en vendimia | T8: Para los vinos jovenes el valor a registrar debe coicidir con el de producción del periodo estimado y como coste industrial del periodo tendríamos que poner 0 ya que si no se duplicaría la consideración del coste.
B9: En el caso de mezcla de uva propia y comprada se aconseja considerar el precio medio podenderado de compra y de coste de producción.
T10: Para los vinos de añadas anteriores y que serán comercializados en el presente periodo estos tienen unos costes acumulados correspondientes a ejercicios pasados como son la uva, procesos de vinificación, etc, que debera reflejarse igualmente en este apartado
B11: Se ha estimado una tasa media de rechazo de uva en entrada en bodga del 0,5%
A14: Nota 2: Proceso vendimia | S14: Nota 6: Coste Industrial del Periodo Imputado a Otras Añadas
B15: A titulo orientativo se propone evaluar economica y financieramento los siguientes componentes del coste del proceso de vendimia y de sus actividades y tareas. | T15: Son costes imputables a los vinos de añadas anteriores pero que aún permanecen en bodega porque se encuentran semiterminados y por tanto falta algún proceso de vinificación como puede ser envejecimiento, embotellado, vestido, etc y que se realizara en el periodo y por tanto consumen recursos del presente ejercicio económico. En el caso de vinos jóvenes, es decir que se produce y vende en el año, este valor debe ser 0 ya que si no se duplicaría la consideración del coste.
S21: Nota 7: Precio Medios
T22: Se establece el precio medio unitario neto, desdcontados los descuentos comerciales, ponderado por canal o tipo de cliente según volumen de facturación
A25: Nota 3: Proceso Previnificación
A26: General:
B27: El promedio del sector considera un 70% aunuqe depende de la calidad de la uva y del proceso de vinificiación.
B29: Para calcular los rendimientos de la uva se puede tomar en consideración los siguientes conceptos y estimaciones:
E31: Tasa media
C32: Raspón | E32: 0.06
C33: Orujos | E33: 0.21
C34: Fango y Heces | E34: 0.03
C35: Mosto final | E35: =1-SUM(E32:E34) -> 0.7
A36: Mermas en el proceso de previnificación
A37: Sobre el vino potencial, las pérdidas promedio derivadas de la fermentación y mezclas | G37: 0.012
A53: Nota 4: Proceso Vinificación Complementaria
B54: En color azul debemos personalizar el nombre y clave de nuestros vinos.
B55: Las pérdidas estimadas por mezclas, clarificación y estabilización, trasiegos y similares asciende a 1,75%
B57: Respecto a los trasiegos y al fltrado cuando se pregunta el número de depósitos a usar se hace referencia al número necesario a parte del actualmente usado.

Sheet Notas_contables
A3: Nota 1: Consideraciones generales | J3: Nota 5: Gastos de personal
B4: Debe cumplimentar los siguientes datos contables (total y/o por áreas) para convertirlos en costes | K4: Se recogen todos los gastos / costes relacionados con el personal de la empresa correspondiente al periodo
B5: Se podrá tomar considerar la partida en términos de gasto contable y convertirla en costes o bien como costes estimados o calculados. En ambos casos se procederá asignar a los centros
B7: El departamento de cultivo al igual que el de bodega son centros principales operativos. El primero cultivo recoge el coste total de las actividades normales vinculadas directamente a la producción de uva del periodo. | J7: Nota 6: Amortizaciones
K8: En este apartdo se recogen los gastos de amortizacion agrupados básicamente en dos categorias, funcional (depreciacion o perdida derivada por el uso) y técnico/fisico derivado del enevejeciiento tecnologico o por el paso del tiempo
B9: El centro o departamento “Gastos Plurianuales y Ajustes” pretende recoger aquellas partidas de gastos de carácter extraordinario (Reparación extraordinaria del edificio, Reparación extra del equipo de frio, etc...) y que no deben imputarse como costes del producto ni del periodo, por tanto permite convertir el gasto en coste a través del ajuste de valor. Estos valores o ajustes deben tener su correspondencia o consideración en el apartado “69 Otras Dotaciones” o Provisiones de Costes.
A15: Nota 2: Consumos de explotación | J15: Nota 7: Otros gastos "no de explotación"
B16: Considerar los valores netos de cada partida deducidos los descuentos | K16: En este apartado se incluyen el resto de partidas que no forman parte de los gastos de explotación, ademas del concepto Otras Dotaciones comentadas en el apartado o nota 1
B17: Las uvas compradas no tienen que coincidir con las consumidas en el caso de que exista producción propia. Las primeras pasan al proceso de producción asignándola al centro Bodega, mientras que las producidas serán los costes del periodo relacionados acumulados en el centro o departamento principal operativo Cultivo siempre y cuando estas no hubiéramos estimados el coste.
J20: Nota 8: Coste de oportunidad
B21: En el caso de que la uva propia se hubiera estimado su valor este pasaría directamente al departamento de cultivo y por tanto el resto de gastos o costes de explotación del citado departamento principal operativo “Cultivo” no se tendría en cuenta porque si no estaríamos duplicando el coste | K21: Los valores asignados en este apartado corresponden a las estimaciones asociadas al coste de oportunidad en base a una tasa de interes sobre el capital invertido u otro criterio considerado para su evaluación
A27: Nota 3: Servicios exteriores
B28: En Servicios Profesionales Independientes se incluyen tanto la asistencia técnica de laboratorios y similares como la asesorisa contable y fiscal, abogados, nóminas, etc.
B30: En la partida Suministros y Comunicaciones se recogen los gastos/costes derivados de agua, electricidad, gas, combustible (gasoil y gasolina) y similares.
B32: En Otros se incluyen aquellas partidas que no tienen cabida especifica en los apartados anteriores como son las primas de seguro, seguridad, limpieza, etc
A35: Nota 4: Impuestos
B36: La partida Impuestos recogen todos aquellos concpetos impositivos agrupados en dos apartados los vinculados con la explotación como son los de impuestos sobre el alcohol, de reciclaje de vidrios, contribuciones rusticas de los terrrenos, actividades economicas, etc, y los no vinculados con la actividad como los de vado de garaje y similares.

Sheet Configuracion
A1: CONFIGURACION - ADPATACION GENERAL
A2: Pestaña Radiografia del Gasto
B3: GASTOS DEL PERIODO (Contabilidad) - RADIOGRAFIA DEL GASTO
B4: Valores Estandar del Perfil de Bodega
B6: Dpto 1 | C6: Dpto 2 | D6: Dpto 3 | E6: Dpto 4
B7: Finca o Cultivo | C7: Bodega o Industrial | D7: Comercial y Logistica | E7: Administ. Estructura
B10: Actividad Estimada del Periodo
B11: Valores Estandar Vino a producir
B12: Vino 1 | C12: Vino 2 | D12: Vino 3 | E12: Vino 4
B13: Joven Blanco Semiseco | C13: Tinto Crianza | D13: Tinto Barrica | E13: Tinto Reserva
B15: Bag in Box | C15: Bot 3/4 | D15: Bot 3/4 | E15: Bot 3/4
B17: Valores Estandar Vino a comercializar
B18: Vino 1 | C18: Vino 2 | D18: Vino 3 | E18: Vino 4
B19: Joven Blanco Semiseco | C19: Tinto Crianza X-1 | D19: Tinto Barrica X-1 | E19: Tinto Reserva X-3
B21: Bag in Box | C21: Bot 3/4 | D21: Bot 3/4 | E21: Bot 3/4
B23: Precios promedios de los vinos a comercializar
B25: Vino 1 | C25: Vino 2 | D25: Vino 3 | E25: Vino 4
B26: Valores Estandar Unitarios
B27: 25 | C27: 6.18 | D27: 15.25 | E27: 18.45
B28: =B27*100 -> 2500 | C28: =C27*100 -> 618 | D28: 1525 | E28: 1845
B29: Precio Maximo Unitario
B30: 30 | C30: 8 | D30: 20 | E30: 25
B31: =B30*100 -> 3000 | C31: =C30*100 -> 800 | D31: 2000 | E31: 2500
B32: Precio Mínimo
B33: 15 | C33: 4.5 | D33: 12 | E33: 15
B34: =B33*100 -> 1500 | C34: =C33*100 -> 450 | D34: 1200 | E34: 1500
B35: Variación Boton (Small Change)
B36: cantidad de valores que la barra avanzará al hacer clic sobre los botones de avance o retroceso (flecha).
B38: 0.5 | C38: 0.1 | D38: 0.15 | E38: 0.2
B39: =B38*100 -> 50 | C39: =C38*100 -> 10 | D39: 15 | E39: 20
B40: Variación Interna (Large Change)
B41: cantidad de valores que la barra de desplazamiento se moverá cuando el usuario haga clic en el área que se encuentre entre la caja de desplazamiento y cualquier de las flechas de desplazamiento
B44: 1 | C44: 0.25 | D44: 0.5 | E44: 0.5
B45: =B44*100 -> 100 | C45: =C44*100 -> 25 | D45: 50 | E45: 50
B47: Coste Medio de la Uva para tipo de Vinos
B48: Vino 1 | C48: Vino 2 | D48: Vino 3 | E48: Vino 4
B49: Valores Estandar Unitarios
B50: 0.9 | C50: 1.2 | D50: 1.7 | E50: 1.1
B51: =B50*100 -> 90 | C51: =C50*100 -> 120 | D51: 170 | E51: 110
B52: Precio Máx | C52: Precio Min | D52: Small | E52: Large
B53: 5 | C53: 0.1 | D53: 0.05 | E53: 0.2
B54: =B53*100 -> 500 | C54: 10 | D54: 5 | E54: 20

Sheet GRAFICO1 (hidden)
B3: Entrada de datos | G3: Tasa de Variación | H3: =(O5-D5)/D5 -> 0 | M3: Entrada de datos
B4: Nombre de la serie: | D4: Estimado | M4: Nombre de la serie: | O4: Sensibilidad | T4: Ingresos
B5: Valor Actual: | D5: =CM_Produccion!M18 -> 2.629468761 | M5: Valor Actual: | O5: =CM_Produccion!M26 -> 2.629468761
C8: ESTIMADO | G8: SENSIBILIDAD
N10: Tasa de Variación:
E15: =D22 -> 3.286835951
B20: Datos de calculo
C21: Mínimo: | D21: =D23*0.75 -> 1.972101571
C22: Máximo: | D22: =MAX(D5,O5)*1.25 -> 3.286835951
C23: Medio: | D23: =(D5+O5)/2 -> 2.629468761
D26: x | E26: y | N26: x | O26: y
C27: Value | D27: 0 | E27: 0 | F27: Center | G27: Angle | M27: Value | N27: 0 | O27: 0 | P27: Center | Q27: Angle
C28: =D5 -> 2.629468761 | D28: =(D34*COS(G28*PI()/180)) -> 2.756584024e-16 | E28: =(D34*SIN(G28*PI()/180)) -> 4.5 | F28: Vector | G28: =IF(C28*D36+D35<0,-5,C28*D36+D35) -> 90 | M28: =O5 -> 2.629468761 | N28: =(N34*COS(Q28*PI()/180)) -> 2.756584024e-16 | O28: =(N34*SIN(Q28*PI()/180)) -> 4.5 | P28: Vector | Q28: =IF(M28*N36+N35<0,-5,M28*N36+N35) -> 90
D30: =(D34*COS((D35)*PI()/180)) -> -2.618510877e-15 | E30: =(D34*SIN(D35*PI()/180)) -> 4.5 | F30: Cero | N30: =(N34*COS((N35)*PI()/180)) -> -2.618510877e-15 | O30: =(N34*SIN(N35*PI()/180)) -> 4.5 | P30: Cero
D34: 4.5 | E34: Radius | N34: 4.5 | O34: Radius
D35: =-D22*180/(D21-D22) -> 450 | E35: Const | N35: =-D22*180/(D21-D22) -> 450 | O35: Const
D36: =180/(D21-D22) -> -136.909784 | E36: Grad | N36: =180/(D21-D22) -> -136.909784 | O36: Grad

Sheet GRAFICO2 (hidden)
B3: Entrada de datos | G3: Tasa de Variación | H3: =(O5-D5)/D5 -> -3.72988635e-16 | M3: Entrada de datos
B4: Nombre de la serie: | D4: Estimado | M4: Nombre de la serie: | O4: Sensibilidad | T4: Ingresos
B5: Valor Actual: | D5: =CM!I29 -> 39014.36629 | M5: Valor Actual: | O5: =CM!I30 -> 39014.36629
B8: ESTIMADO | F8: SIMULACION
C19: Punto Muerto
D26: x | E26: y | N26: x | O26: y
C27: Value | D27: 0 | E27: 0 | F27: Center | G27: Angle | M27: Value | N27: 0 | O27: 0 | P27: Center | Q27: Angle
C28: =D5 -> 39014.36629 | D28: =(D34*COS(G28*PI()/180)) -> 8.26926418e-15 | E28: =(D34*SIN(G28*PI()/180)) -> 4.5 | F28: Vector | G28: =IF(C28*D36+D35<0,-5,C28*D36+D35) -> 90 | M28: =O5 -> 39014.36629 | N28: =(N34*COS(Q28*PI()/180)) -> -3.721144486e-15 | O28: =(N34*SIN(Q28*PI()/180)) -> 4.5 | P28: Vector | Q28: =IF(M28*N36+N35<0,-5,M28*N36+N35) -> 90
D30: =(D34*COS((D35)*PI()/180)) -> 1.736550357e-14 | E30: =(D34*SIN(D35*PI()/180)) -> 4.5 | F30: Cero | N30: =(N34*COS((N35)*PI()/180)) -> 1.736550357e-14 | O30: =(N34*SIN(N35*PI()/180)) -> 4.5 | P30: Cero
J32: Datos de calculo
K33: Mínimo: | L33: =L35*0.75 -> 29260.77472
D34: 4.5 | E34: Radius | K34: Máximo: | L34: =MAX(D5,O5)*1.25 -> 48767.95786 | N34: 4.5 | O34: Radius
D35: =-L34*180/(L33-L34) -> 450 | E35: Const | K35: Medio: | L35: =(D5+O5)/2 -> 39014.36629 | N35: =-L34*180/(L33-L34) -> 450 | O35: Const
D36: =180/(L33-L34) -> -0.009227370177 | E36: Grad | N36: =180/(L33-L34) -> -0.009227370177 | O36: Grad

Sheet Configuracioncopia (hidden)
A1: CONFIGURACION - ADPATACION GENERAL
A2: Pestaña Radiografia del Gasto
B3: GASTOS DEL PERIODO (Contabilidad) - RADIOGRAFIA DEL GASTO
B4: Valores Estandar del Perfil de Bodega
B6: Dpto 1 | C6: Dpto 2 | D6: Dpto 3 | E6: Dpto 4
B7: Cultivo | C7: Bodega o Industrial | D7: Comercial y Logistica | E7: Administ. Estructura
B10: Actividad Estimada del Periodo
B11: Valores Estandar Vino a producir
B12: Vino 1 | C12: Vino 2 | D12: Vino 3 | E12: Vino 4
B13: Joven Blanco Semiseco | C13: Tinto Crianza | D13: Tinto Barrica | E13: Tinto Reserva
B15: Bag in Box | C15: Bot 3/4 | D15: Bot 3/4 | E15: Bot 3/4
B17: Valores Estandar Vino a comercializar
B18: Vino 1 | C18: Vino 2 | D18: Vino 3 | E18: Vino 4
B19: Joven Blanco Semiseco | C19: Tinto Crianza X-1 | D19: Tinto Barrica X-1 | E19: Tinto Reserva X-3
B21: Bag in Box | C21: Bot 3/4 | D21: Bot 3/4 | E21: Bot 3/4
B23: Precios promedios de los vinos a comercializar
B25: Vino 1 | C25: Vino 2 | D25: Vino 3 | E25: Vino 4
B26: Valores Estandar Unitarios
B27: 25 | C27: 6.18 | D27: 15.25 | E27: 18.45
B28: =B27*100 -> 2500 | C28: =C27*100 -> 618 | D28: 1525 | E28: 1845
B29: Precio Maximo Unitario
B30: 30 | C30: 8 | D30: 20 | E30: 25
B31: =B30*100 -> 3000 | C31: =C30*100 -> 800 | D31: 2000 | E31: 2500
B32: Precio Mínimo
B33: 15 | C33: 4.5 | D33: 12 | E33: 15
B34: =B33*100 -> 1500 | C34: =C33*100 -> 450 | D34: 1200 | E34: 1500
B35: Variación Boton (Small Change)
B36: cantidad de valores que la barra avanzará al hacer clic sobre los botones de avance o retroceso (flecha).
B38: 0.5 | C38: 0.1 | D38: 0.15 | E38: 0.2
B39: =B38*100 -> 50 | C39: =C38*100 -> 10 | D39: 15 | E39: 20
B40: Variación Interna (Large Change)
B41: cantidad de valores que la barra de desplazamiento se moverá cuando el usuario haga clic en el área que se encuentre entre la caja de desplazamiento y cualquier de las flechas de desplazamiento
B44: 1 | C44: 0.25 | D44: 0.5 | E44: 0.5
B45: =B44*100 -> 100 | C45: =C44*100 -> 25 | D45: 50 | E45: 50
B47: Coste Medio de la Uva para tipo de Vinos
B48: Vino 1 | C48: Vino 2 | D48: Vino 3 | E48: Vino 4
B49: Valores Estandar Unitarios
B50: 0.9 | C50: 1.2 | D50: 1.7 | E50: 1.1
B51: =B50*100 -> 90 | C51: =C50*100 -> 120 | D51: 170 | E51: 110
B52: Precio Máx | C52: Precio Min | D52: Small | E52: Large
B53: 5 | C53: 0.1 | D53: 0.05 | E53: 0.2
B54: =B53*100 -> 500 | C54: 10 | D54: 5 | E54: 20
